bitfinex/quotes_BTCUSD_20251219
["timestamp","ask_amount","ask_price","bid_price","bid_amount"]
[1766171861104,0.56517,87448.0,87414.0,0.55859]
[1766171861306,0.11519,87436.0,87417.0,0.62722625]
[1766171861513,0.57093,87435.0,87418.0,0.01143929]
[1766171861706,0.01719706,87435.0,87417.0,0.55859]
[1766171861909,0.01719706,87435.0,87413.0,0.01143994]
[1766171861910,0.56517,87427.0,87412.0,0.01144007]
[1766171862133,0.56517,87425.0,87411.0,0.55859]
[1766171862378,0.11519,87424.0,87410.0,0.01374295]
[1766171862521,0.11519,87424.0,87410.0,0.57233295]
[1766171862727,0.11519,87424.0,87411.0,0.0114402]
[1766171862993,0.11519,87424.0,87412.0,0.01144007]
[1766171863194,0.11519,87424.0,87412.0,0.57003007]
[1766171863330,0.11519,87424.0,87413.0,0.01143994]
[1766171863532,0.11519,87424.0,87414.0,0.01143981]
[1766171863736,0.00576,87426.0,87415.0,0.55859]
[1766171864134,0.00576,87426.0,87416.0,0.01143955]
[1766171864336,0.00576,87426.0,87415.0,0.62722804]
[1766171864558,0.00576,87426.0,87415.0,0.57002968]
[1766171864951,0.00576,87426.0,87416.0,0.01143955]
[1766171865147,0.00576,87426.0,87415.0,0.57002968]
[1766171865350,0.00576,87426.0,87416.0,0.01143955]
[1766171865719,0.00576,87433.0,87427.0,0.55859]
[1766171865849,0.00576,87432.0,87427.0,0.61577995]
[1766171866054,0.001099,87427.0,87414.0,0.1126]
[1766171866286,0.56517,87430.0,87414.0,0.1126]
[1766171866456,0.11519,87429.0,87414.0,0.1126]
[1766171866655,0.56517,87429.0,87414.0,0.1126]
[1766171866854,0.68036,87428.0,87414.0,0.1126]
[1766171867053,0.11519,87427.0,87414.0,0.1126]
[1766171868216,0.00576,87426.0,87414.0,0.12403981]
[1766171868409,0.00576,87426.0,87414.0,0.1126]
[1766171868759,0.01143732,87433.0,87419.0,0.63658]
[1766171868955,0.12095,87432.0,87419.0,0.63658]
[1766171869272,0.12095,87432.0,87422.0,0.06863252]
[1766171869458,0.00576,87431.0,87423.0,0.06863172]
[1766171869657,0.00576,87431.0,87426.0,0.55859]
[1766171869874,0.0458,87436.0,87426.0,0.57002824]
[1766171870073,0.00576,87435.0,87427.0,0.01143811]
[1766171870273,0.00576,87434.0,87426.0,0.57002824]
[1766171870874,0.00576,87434.0,87426.0,0.55859]
[1766171871506,0.11519,87469.0,87441.0,0.01143628]
[1766171871705,0.56517,87458.0,87442.0,0.55859]
[1766171871930,0.11519,87455.0,87437.0,0.5700268]
[1766171872174,0.11519,87455.0,87437.0,0.55859]
[1766171872298,0.11519,87455.0,87438.0,0.55859]
[1766171872507,0.57660484,87452.0,87436.0,0.00576]
[1766171872710,0.12095,87451.0,87436.0,0.00576]
[1766171873491,0.12095,87451.0,87439.0,0.01143654]
[1766171873699,0.12095,87451.0,87442.0,0.01143615]
[1766171874012,0.12095,87451.0,87439.0,0.01374295]
[1766171874382,0.00576,87454.0,87452.0,0.62719903]
[1766171874583,0.00025042,87474.0,87461.0,0.01143366]
[1766171874853,0.00576,87473.0,87462.0,0.01143353]
[1766171875050,0.001099,87462.0,87458.0,0.55859]
[1766171875250,0.00576,87473.0,87458.0,0.55859]
[1766171875373,0.01143222,87472.0,87458.0,0.55859]
[1766171875576,0.01143236,87471.0,87458.0,0.55859]
[1766171875787,0.56517,87485.0,87461.0,0.55859]
[1766171876028,0.57660144,87478.0,87461.0,0.55859]
[1766171876270,0.56517,87472.0,87456.0,0.01]
[1766171876457,0.12095,87471.0,87456.0,0.01]
[1766171877217,0.17811221,87471.0,87456.0,0.01]
[1766171877438,0.12095,87471.0,87455.0,0.01]
[1766171877652,0.12095,87471.0,87458.0,0.57002405]
[1766171878406,0.12095,87471.0,87458.0,0.55859]
[1766171879364,0.00576,87471.0,87461.0,0.01143366]
[1766171879569,0.00576,87471.0,87460.0,0.55859]
[1766171880784,0.01143249,87470.0,87454.0,0.56859]
[1766171880904,0.05793084,87465.0,87454.0,0.01]
[1766171881113,0.56517,87468.0,87454.0,0.02143458]
[1766171881114,0.00576,87464.0,87454.0,0.02143458]
[1766171881315,0.56517,87468.0,87454.0,0.02143458]
[1766171881316,0.56517,87468.0,87455.0,0.01143445]
[1766171881477,0.00576,87467.0,87454.0,0.02143458]
[1766171881904,0.00576,87467.0,87455.0,0.01143445]
[1766171882102,0.00576,87467.0,87456.0,0.01143432]
[1766171883326,0.00576,87467.0,87455.0,0.02143445]
[1766171883798,0.00576,87467.0,87454.0,0.01]
[1766171883973,0.00576,87467.0,87455.0,0.01]
[1766171884188,0.12301,87465.0,87455.0,0.01]
[1766171885109,0.00576,87467.0,87455.0,0.01]
[1766171885344,0.00576,87467.0,87455.0,0.02143445]
[1766171885556,0.00576,87467.0,87455.0,0.01]
[1766171885755,0.01143105,87481.0,87468.0,0.01143275]
[1766171885756,0.00576,87473.0,87468.0,0.01143275]
[1766171885908,0.00576,87474.0,87467.0,0.61077195]
[1766171886110,0.00576,87474.0,87467.0,0.60967295]
[1766171886311,0.57092,87481.0,87468.0,0.03876753]
[1766171886510,0.58811118,87480.0,87462.0,0.59593]
[1766171886683,0.01143157,87477.0,87462.0,0.59593]
[1766171886882,0.12301,87477.0,87462.0,0.59593]
[1766171887792,0.58235144,87478.0,87454.0,0.03434307]
[1766171887793,0.12301,87465.0,87454.0,0.03434307]
[1766171888004,0.69393,87464.0,87454.0,0.04010307]
[1766171888243,0.06860148,87462.0,87454.0,0.03434307]
[1766171888446,0.12301,87455.0,87445.0,0.00576]
[1766171889546,0.00576,87459.0,87447.0,0.06861297]
[1766171889752,0.00576,87459.0,87448.0,0.01143536]
[1766171889924,0.00576,87470.0,87460.0,0.59593]
[1766171890135,0.00576,87470.0,87460.0,0.59603801]
[1766171890538,0.00576,87471.0,87460.0,0.59603801]
[1766171891205,0.00576,87471.0,87460.0,0.00010801]
[1766171892014,0.14020236,87471.0,87460.0,0.00010801]
[1766171892310,0.12877,87471.0,87460.0,0.00010801]
[1766171895079,0.12877,87471.0,87460.0,0.0115418]
[1766171895292,0.00576,87471.0,87462.0,0.59593]
[1766171896221,0.00576,87471.0,87463.0,0.0114334]
[1766171896443,0.00576,87471.0,87464.0,0.01143327]
[1766171896645,0.00576,87471.0,87462.0,0.59593]
[1766171897255,0.00576,87471.0,87460.0,0.00010801]
[1766171899096,0.12417,87467.0,87460.0,0.00010801]
[1766171899295,0.60843,87459.0,87441.0,0.01374295]
[1766171899453,0.60843,87456.0,87443.0,0.00576]
[1766171899657,0.12417,87455.0,87443.0,0.00576]
[1766171899854,0.12417,87455.0,87443.0,0.01719602]
[1766171900188,0.00576,87458.0,87455.0,0.001099]
[1766171900593,0.00576,87457.0,87455.0,0.001099]
[1766171900798,0.05715666,87479.0,87462.0,0.58101]
[1766171900995,0.00576,87476.0,87462.0,0.68442353]
[1766171901198,0.00576,87476.0,87463.0,0.58101]
[1766171906036,0.60843,87472.0,87456.0,0.58677]
[1766171906230,0.60843,87470.0,87452.0,0.061206]
[1766171906440,0.12417,87459.0,87449.0,0.061206]
[1766171906657,0.7326,87457.0,87449.0,0.00010797]
[1766171907248,0.00576,87456.0,87449.0,0.00010797]
[1766171909155,0.00576,87456.0,87450.0,0.0114351]
[1766171909332,0.004661,87456.0,87451.0,0.01143497]
[1766171909983,0.004661,87456.0,87451.0,0.06860977]
[1766171910276,0.004661,87456.0,87454.0,0.05717283]
[1766171910475,1e-06,87456.0,87453.0,0.58101]
[1766171911349,0.00576,87461.0,87453.0,0.58101]
[1766171911718,0.12417,87465.0,87453.0,0.58101]
[1766171911939,0.00576,87464.0,87453.0,0.58101]
[1766171912357,0.00576,87464.0,87453.0,0.64961782]
[1766171913092,0.00576,87463.0,87454.0,0.06860729]
[1766171913414,0.00576,87463.0,87454.0,0.58101]
[1766171913619,0.12417,87465.0,87449.0,0.00010797]
[1766171913838,0.12417,87486.0,87467.0,0.01143288]
[1766171914108,0.0002,87500.0,87478.0,0.01374295]
[1766171914109,0.13559948,87493.0,87478.0,0.01374295]
[1766171914315,0.05714681,87494.0,87478.0,0.01374295]
[1766171914316,0.12798,87492.0,87478.0,0.01374295]
[1766171915247,0.12808799,87492.0,87478.0,0.01374295]
[1766171915500,0.12808799,87492.0,87479.0,0.02261518]
[1766171916164,0.0002,87500.0,87494.0,0.01122936]
[1766171916380,0.0002,87500.0,87497.0,0.01374295]
[1766171916381,0.00596,87500.0,87497.0,0.01374295]
[1766171916566,0.00596,87500.0,87497.0,0.01385094]
[1766171916761,0.0002,87500.0,87497.0,0.01385094]
[1766171917361,0.00576,87502.0,87497.0,0.0824241]
[1766171917618,0.00596,87503.0,87498.0,0.01142883]
[1766171917848,0.00596,87503.0,87497.0,0.01385094]
[1766171919287,0.64590141,87513.0,87497.0,0.01385094]
[1766171919288,0.00576,87518.0,87505.0,0.57575791]
[1766171919478,0.00576,87518.0,87505.0,0.56433]
[1766171919672,0.12222,87516.0,87500.0,0.01142857]
[1766171919893,0.01142674,87514.0,87497.0,0.57818094]
[1766171920091,0.69956,87514.0,87497.0,0.6467547]
[1766171920274,0.12222,87513.0,87498.0,0.01142883]
[1766171920488,0.00576,87512.0,87497.0,0.57818094]
[1766171920698,0.001099,87498.0,87497.0,0.00010799]
[1766171921126,0.12222,87506.0,87497.0,0.00010799]
[1766171921336,0.00576,87505.0,87497.0,0.01153695]
[1766171921496,0.00576,87505.0,87497.0,0.00010799]
[1766171921709,0.12222,87513.0,87497.0,0.00010799]
[1766171921710,0.00576,87504.0,87497.0,0.00010799]
[1766171922103,0.00576,87512.0,87501.0,0.56433]
[1766171922495,0.001099,87501.0,87497.0,0.00010799]
[1766171922691,0.12222,87509.0,87497.0,0.00010799]
[1766171923337,0.57734,87511.0,87498.0,0.57575883]
[1766171923338,0.00576,87511.0,87498.0,0.57575883]
[1766171923568,0.00576,87511.0,87499.0,0.56433]
[1766171923727,0.00576,87511.0,87499.0,0.5757587]
[1766171924381,1.53e-06,87513.0,87501.0,0.56433]
[1766171924565,0.00576,87510.0,87501.0,0.56433]
[1766171924974,0.00576,87510.0,87497.0,0.00010799]
[1766171925138,0.00576,87510.0,87504.0,0.56433]
[1766171925333,0.00576,87511.0,87507.0,0.01374295]
[1766171925517,1.53e-06,87513.0,87502.0,0.01374295]
[1766171925728,1.53e-06,87513.0,87499.0,0.57807295]
[1766171925930,1.53e-06,87513.0,87499.0,0.64664502]
[1766171926139,1.53e-06,87513.0,87499.0,0.58950165]
[1766171926345,1.53e-06,87513.0,87502.0,0.05714133]
[1766171926551,1.53e-06,87513.0,87500.0,0.56433]
[1766171927381,1.53e-06,87513.0,87499.0,0.01950295]
[1766171927584,0.12222,87512.0,87499.0,0.01950295]
[1766171927794,1.53e-06,87513.0,87512.0,0.001099]
[1766171928023,1.53e-06,87513.0,87502.0,0.01]
[1766171928254,1.53e-06,87513.0,87504.0,0.63289779]
[1766171928472,1.53e-06,87513.0,87505.0,0.56433]
[1766171928681,1.53e-06,87513.0,87506.0,0.01142778]
[1766171928889,1.53e-06,87513.0,87507.0,0.01142765]
[1766171929102,1.53e-06,87513.0,87511.0,0.56433]
[1766171929303,1.53e-06,87522.0,87511.0,0.56433]
[1766171929520,0.00576,87524.0,87517.0,0.01374295]
[1766171929521,0.00076153,87524.0,87517.0,0.01374295]
[1766171929780,0.00076153,87524.0,87513.0,0.01374295]
[1766171930129,0.00076153,87524.0,87509.0,0.01142739]
[1766171930325,0.00076153,87524.0,87508.0,0.01142752]
[1766171930326,0.00076153,87524.0,87510.0,0.56433]
[1766171930904,0.13440696,87524.0,87510.0,0.56433]
[1766171931132,0.12298153,87524.0,87510.0,0.56433]
[1766171931251,0.13440696,87524.0,87510.0,0.56433]
[1766171931451,0.00076153,87524.0,87513.0,0.57807295]
[1766171932236,0.57734,87532.0,87522.0,0.01142569]
[1766171932435,0.00576,87537.0,87532.0,0.564667]
[1766171932592,0.12222,87548.0,87533.0,0.01142426]
[1766171932772,0.00576,87547.0,87533.0,0.56433]
[1766171933176,0.57734,87542.0,87527.0,0.00576]
[1766171933387,0.12222,87534.0,87524.0,0.00576]
[1766171933610,0.57734,87533.0,87519.0,0.01]
[1766171933815,0.12222,87529.0,87519.0,0.01]
[1766171934016,0.01142439,87532.0,87519.0,0.01]
[1766171934226,0.00612011,87534.0,87524.0,0.01142543]
[1766171934227,0.00036011,87534.0,87524.0,0.01142543]
[1766171934480,0.57734,87533.0,87519.0,0.01]
[1766171934684,0.69956,87533.0,87517.0,0.01]
[1766171935473,0.00576,87532.0,87518.0,0.01]
[1766171935639,0.00576,87532.0,87518.0,0.58575622]
[1766171935974,0.00576,87531.0,87520.0,0.02142595]
[1766171936401,0.00576,87531.0,87521.0,0.01142582]
[1766171936534,0.00576,87531.0,87523.0,0.01142556]
[1766171936737,1.1e-07,87534.0,87531.0,0.001099]
[1766171936941,1.1e-07,87534.0,87522.0,0.00576]
[1766171937163,0.00181445,87532.0,87522.0,0.00576]
[1766171937365,1.1e-07,87534.0,87522.0,0.00576]
[1766171938774,0.12222,87533.0,87519.0,0.01]
[1766171938961,0.12222,87533.0,87521.0,0.00576]
[1766171940189,0.57734,87530.0,87521.0,0.00576]
[1766171940400,0.05712613,87526.0,87514.0,0.03432064]
[1766171940654,0.64233952,87524.0,87514.0,0.00576]
[1766171940792,0.58511899,87524.0,87514.0,0.01718674]
[1766171940994,0.00778149,87524.0,87516.0,0.01142648]
[1766171941195,0.00576,87529.0,87514.0,0.00576]
[1766171941400,0.00576,87529.0,87506.0,0.03432311]
[1766171941401,0.01142543,87524.0,87506.0,0.03432311]
[1766171941582,0.00576,87523.0,87507.0,0.01718765]
[1766171941782,0.00576,87523.0,87507.0,0.00576]
[1766171942558,0.00729305,87523.0,87511.0,0.01142713]
[1766171942746,0.00576,87523.0,87511.0,0.01142713]
[1766171942901,0.00576,87522.0,87517.0,0.56433]
[1766171943101,0.00576,87522.0,87512.0,0.09527844]
[1766171943444,0.00576,87522.0,87514.0,0.01142674]
[1766171943656,0.00576,87522.0,87512.0,0.60247368]
[1766171943857,0.00576,87522.0,87513.0,0.01142687]
[1766171944155,0.00576,87522.0,87514.0,0.03787046]
[1766171944792,0.01142739,87509.0,87491.0,0.64837847]
[1766171944997,0.01142739,87509.0,87485.0,0.06858266]
[1766171944998,0.12076,87500.0,87485.0,0.06858266]
[1766171945296,0.00576,87499.0,87484.0,0.01143066]
[1766171945446,0.00576,87499.0,87485.0,0.06858314]
[1766171945447,0.12652,87499.0,87485.0,0.06858314]
[1766171945867,0.12652,87499.0,87486.0,0.06858214]
[1766171946064,0.12652,87499.0,87485.0,0.01143053]
[1766171946270,0.12076,87497.0,87486.0,0.00036]
[1766171946494,0.12076,87496.0,87486.0,0.00036]
[1766171946836,0.00576,87495.0,87486.0,0.00036]
[1766171947060,0.00576,87494.0,87486.0,0.00036]
[1766171947290,0.12076,87496.0,87486.0,0.00036]
[1766171947433,0.00576,87495.0,87486.0,0.00036]
[1766171948243,0.00118904,87512.0,87504.0,0.01142804]
[1766171948470,0.00576,87528.0,87513.0,0.01374295]
[1766171948668,0.12652,87528.0,87514.0,0.05713324]
[1766171948877,0.12652,87528.0,87513.0,0.02516982]
[1766171949106,0.12652,87528.0,87514.0,0.01142674]
[1766171949317,0.12652,87528.0,87513.0,0.08230394]
[1766171949535,0.12652,87528.0,87515.0,0.01142661]
[1766171949743,0.12662792,87528.0,87516.0,0.01142648]
[1766171950395,0.00576,87527.0,87517.0,0.05713115]
[1766171950619,0.00576,87527.0,87517.0,0.0685575]
[1766171950819,0.00576,87527.0,87519.0,0.01142609]
[1766171951032,0.00576,87527.0,87517.0,0.06855807]
[1766171951240,0.00576,87527.0,87518.0,0.01142622]
[1766171951454,0.00576,87527.0,87514.0,0.01142674]
[1766171951680,0.00010792,87528.0,87522.0,0.05712839]
[1766171951898,0.00586792,87528.0,87522.0,0.01142569]
[1766171952109,0.00586792,87528.0,87523.0,0.01142556]
[1766171952335,0.00586792,87528.0,87522.0,0.06855416]
[1766171952571,0.01142334,87540.0,87521.0,0.01142582]
[1766171952572,0.12076,87576.0,87555.0,0.01142139]
[1766171952767,0.12076,87576.0,87527.0,0.01374295]
[1766171952768,0.00010792,87576.0,87572.0,0.01141917]
[1766171953002,0.01141656,87592.0,87570.0,0.01374295]
[1766171953003,0.12076,87601.0,87586.0,0.01141734]
[1766171953248,0.12076,87601.0,87586.0,0.00576]
[1766171953467,0.01141552,87600.0,87586.0,0.00576]
[1766171953677,0.12076,87599.0,87586.0,0.00576]
[1766171953854,0.0023442,87587.0,87586.0,0.00611987]
[1766171954025,0.00576,87598.0,87586.0,0.00611987]
[1766171954231,0.26102082,87606.0,87586.0,0.00611987]
[1766171954456,0.22826986,87616.0,87586.0,0.00611987]
[1766171954457,0.00576,87605.0,87590.0,0.05708387]
[1766171954632,0.00576,87605.0,87591.0,0.01141669]
[1766171954856,0.00576,87605.0,87589.0,0.01141695]
[1766171955230,0.05707247,87608.0,87586.0,0.00611987]
[1766171955231,0.01141344,87616.0,87586.0,0.00611987]
[1766171955432,0.01141461,87607.0,87586.0,0.00611987]
[1766171955639,0.00576,87606.0,87587.0,0.01]
[1766171955867,0.01717474,87606.0,87587.0,0.01]
[1766171956016,0.01141513,87603.0,87587.0,0.01]
[1766171956221,0.12076,87603.0,87587.0,0.01]
[1766171956431,0.12076,87603.0,87597.0,0.02739882]
[1766171956654,0.22826473,87618.0,87597.0,0.02739882]
[1766171956655,0.12652,87616.0,87603.0,0.001099]
[1766171956873,0.0114137,87614.0,87600.0,0.60782]
[1766171957082,0.13217344,87616.0,87598.0,0.00576]
[1766171957297,0.13793344,87616.0,87604.0,0.01369754]
[1766171957511,0.12076,87616.0,87604.0,0.01369754]
[1766171957726,0.05707045,87611.0,87599.0,0.60782]
[1766171957948,0.05707045,87611.0,87591.0,0.01369754]
[1766171957949,0.05707224,87609.0,87591.0,0.62151754]
[1766171958163,0.12076,87609.0,87595.0,0.01369754]
[1766171958394,0.0570685,87614.0,87595.0,0.01369754]
[1766171958615,0.00576,87615.0,87596.0,0.56405]
[1766171958616,0.01141383,87613.0,87596.0,0.56405]
[1766171958829,0.05707158,87610.0,87596.0,0.56405]
[1766171959045,0.001,87617.0,87609.0,0.01369754]
[1766171959515,0.001,87617.0,87602.0,0.01717526]
[1766171959516,0.01141357,87615.0,87602.0,0.00576]
[1766171959745,0.12005,87611.0,87600.0,0.00576]
[1766171960174,0.22826019,87620.0,87601.0,0.56405]
[1766171960388,0.22826019,87620.0,87600.0,0.00576]
[1766171960389,0.01141383,87613.0,87600.0,0.00576]
[1766171960609,0.12105,87617.0,87600.0,0.00576]
[1766171960610,0.001,87617.0,87609.0,0.01369754]
[1766171961080,0.001,87617.0,87609.0,0.07652872]
[1766171961293,0.0002,87621.0,87609.0,0.58350754]
[1766171961723,0.05131479,87605.0,87597.0,0.01]
[1766171961949,0.05131479,87605.0,87582.0,0.11852497]
[1766171961950,0.01141487,87605.0,87598.0,0.00576]
[1766171962183,0.06848829,87607.0,87593.0,0.56405]
[1766171962397,0.01141487,87605.0,87596.0,0.00576]
[1766171962633,0.01141474,87606.0,87593.0,0.56405]
[1766171962870,0.12005,87624.0,87597.0,0.56405]
[1766171963078,0.12005,87624.0,87612.0,0.01369754]
[1766171963288,0.01141265,87622.0,87612.0,0.01369754]
[1766171963518,0.011412,87627.0,87612.0,0.01369754]
[1766171963519,0.22821658,87637.0,87612.0,0.01369754]
[1766171963744,0.01141161,87630.0,87615.0,0.01369754]
[1766171963956,0.12005,87626.0,87616.0,0.00476]
[1766171964163,0.01141226,87625.0,87616.0,0.00476]
[1766171964382,0.22823779,87628.0,87617.0,0.00576]
[1766171964592,0.12005,87621.0,87614.0,0.00576]
[1766171964807,0.12005,87621.0,87614.0,0.00611987]
[1766171965026,0.06846537,87636.0,87621.0,0.001099]
[1766171965256,0.00576,87644.0,87618.0,0.01369754]
[1766171965257,0.0114094,87647.0,87635.0,0.01369754]
[1766171965478,0.01140979,87644.0,87635.0,0.01945754]
[1766171965693,0.12005,87646.0,87635.0,0.01369754]
[1766171966134,0.01140901,87650.0,87635.0,0.01369754]
[1766171966345,0.60341,87653.0,87635.0,0.01369754]
[1766171966346,0.05704636,87648.0,87635.0,0.01369754]
[1766171966553,0.01140953,87646.0,87635.0,0.01369754]
[1766171966758,0.01140966,87645.0,87635.0,0.01369754]
[1766171966967,0.1885068,87647.0,87635.0,0.01369754]
[1766171967221,0.01140914,87649.0,87632.0,0.00576]
[1766171967431,0.01140927,87648.0,87636.0,0.01369754]
[1766171967638,0.06845816,87645.0,87636.0,0.01369754]
[1766171967843,0.01140992,87643.0,87636.0,0.01369754]
[1766171968046,0.01140992,87643.0,87623.0,0.06706244]
[1766171968047,0.01141135,87632.0,87617.0,0.56405]
[1766171968260,0.01141135,87632.0,87619.0,0.00576]
[1766171968498,0.00576,87634.0,87620.0,0.01141291]
[1766171968713,0.01141031,87640.0,87622.0,0.01141265]
[1766171968913,0.12581,87639.0,87622.0,0.01141265]
[1766171969171,0.01141057,87638.0,87621.0,0.56405]
[1766171969347,0.12005,87639.0,87622.0,0.01141265]
[1766171969550,0.00576,87638.0,87622.0,0.01141265]
[1766171969778,0.12005,87631.0,87619.0,0.00576]
[1766171970125,0.12005,87631.0,87618.0,0.01369754]
[1766171970325,0.12005,87631.0,87619.0,0.00576]
[1766171970567,0.12005,87631.0,87618.0,0.01369754]
[1766171971006,0.12005,87631.0,87619.0,0.00997137]
[1766171971130,0.13146148,87631.0,87619.0,0.00997137]
[1766171971329,0.12005,87628.0,87617.0,0.00576]
[1766171971535,0.12005,87628.0,87617.0,0.01717331]
[1766171971759,0.00576,87633.0,87617.0,0.00576]
[1766171971956,0.01716992,87643.0,87619.0,0.01141304]
[1766171972163,0.05705403,87637.0,87614.0,0.00035987]
[1766171972381,0.72346,87634.0,87619.0,0.00576]
[1766171972555,0.12005,87633.0,87619.0,0.01717304]
[1766171972758,0.12005,87633.0,87619.0,0.00576]
[1766171972980,0.00576,87636.0,87620.0,0.56405]
[1766171973230,0.12005,87658.0,87638.0,0.56405]
[1766171973444,0.00199998,87690.0,87658.0,0.56405]
[1766171973445,0.00099999,87690.0,87658.0,0.56405]
[1766171973656,0.0570216,87687.0,87665.0,0.56405]
[1766171973861,0.12005,87687.0,87671.0,0.02510382]
[1766171974064,0.12005,87687.0,87673.0,0.01140602]
[1766171974270,0.12005,87687.0,87671.0,0.02510382]
[1766171974271,0.12005,87687.0,87677.0,0.01140549]
[1766171974470,0.12005,87687.0,87676.0,0.01140562]
[1766171974624,0.12197,87695.0,87677.0,0.00611987]
[1766171974887,0.12197,87695.0,87658.0,0.22815726]
[1766171974888,0.01140458,87684.0,87676.0,0.00576]
[1766171975178,0.01140458,87684.0,87661.0,0.58705758]
[1766171975179,0.12197,87680.0,87663.0,0.01140732]
[1766171975391,0.00576,87692.0,87663.0,0.00036095]
[1766171975589,0.12197,87685.0,87669.0,0.01140654]
[1766171975790,0.57558,87681.0,87664.0,0.01140719]
[1766171976004,0.12197,87680.0,87666.0,0.01369754]
[1766171976228,0.12197,87680.0,87664.0,0.01140719]
[1766171976350,0.0058,87683.0,87671.0,0.01140628]
[1766171976551,0.0058,87683.0,87669.0,0.02510408]
[1766171976860,0.01140107,87711.0,87686.0,0.57565]
[1766171977055,0.58138,87709.0,87693.0,0.01]
[1766171977208,0.01140094,87712.0,87685.0,0.0058]
[1766171977209,0.0058,87708.0,87694.0,0.00884238]
[1766171977428,0.0058,87708.0,87688.0,0.01140406]
[1766171977651,0.00336998,87695.0,87693.0,0.01140341]
[1766171977828,0.0058,87700.0,87694.0,0.01140328]
[1766171978033,0.0058,87700.0,87698.0,0.01369754]
[1766171978211,0.04568,87712.0,87698.0,0.01369754]
[1766171978212,0.0058,87703.0,87698.0,0.00036095]
[1766171978411,0.00073805,87698.0,87686.0,0.01140432]
[1766171978630,0.01140276,87698.0,87686.0,0.00036111]
[1766171978830,0.01140367,87691.0,87686.0,1.11e-06]
[1766171979032,0.12197,87689.0,87686.0,1.11e-06]
[1766171979843,0.58138,87690.0,87686.0,1.11e-06]
[1766171979844,0.12197,87687.0,87686.0,1.11e-06]
[1766171980046,0.0058,87690.0,87687.0,1e-06]
[1766171980296,0.57558,87688.0,87686.0,1.11e-06]
[1766171980436,0.12197,87687.0,87686.0,1.11e-06]
[1766171980644,0.69755,87687.0,87686.0,1.11e-06]
[1766171982674,0.01140549,87677.0,87656.0,0.01]
[1766171982897,0.0114068,87667.0,87656.0,1.51e-06]
[1766171983120,0.58698784,87659.0,87656.0,1.51e-06]
[1766171983338,0.69755,87657.0,87656.0,1.51e-06]
[1766171983595,0.70335,87657.0,87656.0,1.51e-06]
[1766171984258,0.12197,87656.0,87641.0,0.00882174]
[1766171984453,0.1223311,87656.0,87643.0,0.01140992]
[1766171984669,0.1223311,87656.0,87642.0,0.01443351]
[1766171985114,0.6979111,87656.0,87642.0,0.01443351]
[1766171985329,0.01140862,87653.0,87642.0,0.01443351]
[1766171985536,0.123068,87642.0,87626.0,0.01141213]
[1766171985821,0.123068,87642.0,87626.0,0.01]
[1766171985822,0.12197,87640.0,87626.0,0.01]
[1766171985972,0.12197,87640.0,87626.0,0.02141213]
[1766171986193,0.12197,87640.0,87626.0,0.01]
[1766171986415,0.12197,87640.0,87627.0,0.011412]
[1766171986605,0.0058,87649.0,87637.0,0.0114107]
[1766171986783,0.0058,87649.0,87638.0,0.01141057]
[1766171987179,0.01140953,87646.0,87625.0,0.02141226]
[1766171987380,0.12197,87643.0,87628.0,0.01141187]
[1766171987605,0.12777,87642.0,87627.0,0.011412]
[1766171987821,0.57558,87643.0,87627.0,0.011412]
[1766171987822,0.12777,87641.0,87627.0,0.01]
[1766171987970,0.12777,87641.0,87627.0,0.021412]
[1766171988168,0.12777,87641.0,87627.0,0.01]
[1766171988404,0.12777,87641.0,87627.0,0.021412]
[1766171988611,0.12777,87641.0,87628.0,0.01141187]
[1766171988944,0.0058,87640.0,87631.0,0.01141148]
[1766171989142,0.12197,87641.0,87632.0,0.01141135]
[1766171989309,0.0058,87639.0,87631.0,0.06846868]
[1766171989629,0.12197,87641.0,87630.0,0.06846949]
[1766171989630,0.0058,87638.0,87630.0,0.01141161]
[1766171989870,0.12197,87641.0,87631.0,0.05705743]
[1766171990040,0.0058,87640.0,87633.0,0.05705587]
[1766171990264,0.0058,87640.0,87632.0,0.01141135]
[1766171990500,0.57558,87648.0,87632.0,0.01141135]
[1766171990720,0.22852815,87656.0,87630.0,0.05705797]
[1766171990721,0.57558,87661.0,87639.0,0.01]
[1766171990893,0.22812795,87671.0,87639.0,0.01]
[1766171990894,0.01140654,87669.0,87648.0,0.01140927]
[1766171991163,0.05148,87668.0,87650.0,0.01140901]
[1766171991330,0.58698667,87668.0,87649.0,0.01140914]
[1766171991534,0.0058,87667.0,87652.0,0.01140875]
[1766171991712,0.0058,87667.0,87650.0,0.01140901]
[1766171991713,0.57558,87668.0,87650.0,0.01140901]
[1766171991918,0.0058,87666.0,87649.0,0.01140914]
[1766171992119,0.0058,87666.0,87648.0,0.01369754]
[1766171992319,0.001098,87648.0,87639.0,0.0003611]
[1766171992525,0.0058,87647.0,87639.0,0.0003611]
[1766171993091,0.0058,87647.0,87639.0,0.01177154]
[1766171993334,0.0058,87647.0,87641.0,0.01141018]
[1766171993744,0.0058,87647.0,87643.0,0.06187968]
[1766171993929,0.0058,87647.0,87644.0,0.01140979]
[1766171994854,0.12197,87659.0,87649.0,0.01]
[1766171995100,0.57558,87670.0,87651.0,0.01140888]
[1766171995247,0.00576,87669.0,87654.0,0.01140849]
[1766171995451,0.00576,87669.0,87652.0,0.22817505]
[1766171995452,0.12197,87667.0,87652.0,0.01140875]
[1766171995856,0.00206033,87653.0,87651.0,0.01]
[1766171996159,0.12197,87656.0,87641.0,0.01141018]
[1766171996335,0.00576,87655.0,87650.0,0.05704503]
[1766171996535,0.00576,87655.0,87639.0,0.0061211]
[1766171996536,0.57558,87674.0,87657.0,0.0114081]
[1766171996759,0.57558,87673.0,87657.0,0.0114081]
[1766171996932,0.05144,87672.0,87655.0,0.05704156]
[1766171997124,0.62702,87672.0,87653.0,0.01140862]
[1766171997506,0.63842615,87672.0,87652.0,0.01140875]
[1766171997731,0.62702,87672.0,87654.0,0.01140849]
[1766171997904,0.62702,87672.0,87653.0,0.06845131]
[1766171998043,0.01140628,87671.0,87653.0,0.06845131]
[1766171998248,0.69545697,87672.0,87653.0,0.01140862]
[1766171998493,0.01140628,87671.0,87653.0,0.01140862]
[1766171998769,0.12197,87669.0,87648.0,0.01140927]
[1766171998966,0.12197,87664.0,87647.0,0.0114094]
[1766171999165,0.00576,87663.0,87650.0,0.01140901]
[1766171999414,0.00576,87663.0,87650.0,0.06845379]